bitfinex/quotes_ETHUSD_20251108
["timestamp","ask_amount","ask_price","bid_price","bid_amount"]
[1762626510813,1e-08,3392.6,3392.5,6.45215097]
[1762626511814,1e-08,3393.0,3392.9,5.07324719]
[1762626512115,1e-08,3393.0,3392.9,10.16479028]
[1762626512314,1e-08,3393.0,3392.9,10.80609028]
[1762626512614,1e-08,3393.0,3392.9,10.92413504]
[1762626515103,1e-08,3393.0,3392.9,14.03013504]
[1762626515414,1e-08,3393.0,3392.9,13.08300255]
[1762626516890,0.49470001,3393.0,3392.9,6.63115546]
[1762626517087,0.49470001,3393.0,3392.9,7.09185546]
[1762626517088,1e-08,3393.0,3392.9,7.09185546]
[1762626517411,0.49470001,3393.0,3392.9,6.63115546]
[1762626517615,0.94520001,3393.0,3392.9,6.63115546]
[1762626517825,0.49470001,3393.0,3392.9,6.63115546]
[1762626518117,1e-08,3393.0,3392.9,6.63115546]
[1762626519022,1e-08,3393.0,3392.9,7.09185546]
[1762626520618,1e-08,3393.0,3392.9,6.63115546]
[1762626522128,0.49470001,3393.0,3392.9,6.63115546]
[1762626524033,1e-08,3393.0,3392.9,6.63115546]
[1762626524237,1e-08,3393.0,3392.9,7.11525546]
[1762626524911,1e-08,3393.0,3392.9,6.63115546]
[1762626526333,0.47520001,3393.0,3392.9,6.63115546]
[1762626526632,0.94620001,3393.0,3392.9,6.63115546]
[1762626526835,0.47520001,3393.0,3392.9,6.63115546]
[1762626529344,1.22163191,3393.0,3392.9,3.09453119]
[1762626535824,0.75063191,3393.0,3392.9,3.09453119]
[1762626536029,1.22163191,3393.0,3392.9,3.09453119]
[1762626536560,1.22163191,3393.0,3392.9,3.09553119]
[1762626541180,1.22159865,3393.0,3392.9,3.09553119]
[1762626542579,1.22159865,3393.0,3392.9,3.1250045]
[1762626542781,1.22159865,3393.0,3392.9,3.7322471]
[1762626543089,0.75059865,3393.0,3392.9,3.7322471]
[1762626543262,1.21439865,3393.0,3392.9,3.70277379]
[1762626543675,1.21439865,3393.0,3392.9,3.7322471]
[1762626544902,0.27539865,3393.0,3392.9,3.7322471]
[1762626545204,1e-08,3393.0,3392.9,4.02407379]
[1762626545354,1e-08,3393.0,3392.9,4.6576471]
[1762626545693,1e-08,3393.0,3392.9,4.17127379]
[1762626545850,1e-08,3393.0,3392.9,4.31880719]
[1762626546073,1e-08,3393.0,3392.9,4.77570719]
[1762626546495,1e-08,3393.0,3392.9,3.85030719]
[1762626546700,1e-08,3393.0,3392.9,3.82083388]
[1762626546903,1e-08,3393.0,3392.9,4.28933388]
[1762626547410,1e-08,3393.0,3392.9,3.82083388]
[1762626549114,0.27566322,3393.0,3392.9,3.82083388]
[1762626550115,0.27568021,3393.0,3392.9,3.82083388]
[1762626550312,0.27568021,3393.0,3392.9,5.57851919]
[1762626550518,1e-08,3393.0,3392.9,6.03541919]
[1762626550818,1e-08,3393.0,3392.9,6.00594588]
[1762626551608,1e-08,3393.0,3392.9,5.54904588]
[1762626551825,1e-08,3393.0,3392.9,6.03541919]
[1762626551982,1e-08,3393.0,3392.9,6.00594588]
[1762626553419,1e-08,3393.0,3392.9,5.54904588]
[1762626553630,1e-08,3393.0,3392.9,6.00594588]
[1762626554428,1e-08,3393.0,3392.9,5.54904588]
[1762626554638,1e-08,3393.0,3392.9,9.40904588]
[1762626555834,1e-08,3393.0,3392.9,5.54904588]
[1762626556143,0.92920001,3393.0,3392.9,5.08054588]
[1762626556298,1.20476723,3393.0,3392.9,5.08054588]
[1762626556498,1.20476723,3393.0,3392.9,3.09553119]
[1762626559534,0.74096723,3393.0,3392.9,2.94833119]
[1762626559698,1.20476723,3393.0,3392.9,3.09553119]
[1762626560937,0.74096723,3393.0,3392.9,3.09553119]
[1762626561148,0.27556723,3393.0,3392.9,4.08311685]
[1762626561854,0.74096723,3393.0,3392.9,4.08311685]
[1762626563642,0.27556723,3393.0,3392.9,4.08311685]
[1762626564884,0.27556723,3393.0,3392.9,5.81132885]
[1762626565048,0.27556723,3393.0,3392.9,6.26822885]
[1762626566043,1e-08,3393.0,3392.9,6.26822885]
[1762626566353,1e-08,3393.0,3392.9,10.40379608]
[1762626569675,0.002,3393.4,3393.0,2.94724432]
[1762626569874,0.002,3393.4,3393.0,6.17143772]
[1762626570749,0.002,3393.4,3393.0,5.82099224]
[1762626570750,0.4658,3393.4,3393.0,5.82099224]
[1762626571656,0.9508,3393.1,3393.0,5.82099224]
[1762626571860,0.9508,3393.1,3393.0,5.70293772]
[1762626572057,0.9508,3393.1,3393.0,9.56293772]
[1762626573550,0.9508,3393.1,3393.0,6.80724432]
[1762626574049,0.9508,3393.1,3393.0,2.94724432]
[1762626577684,0.4813,3393.1,3393.0,2.97671676]
[1762626577989,1.22637847,3393.1,3393.0,2.97671676]
[1762626578672,0.75687847,3393.1,3393.0,2.97671676]
[1762626578984,0.75687847,3393.1,3393.0,3.55446955]
[1762626579185,1.22637847,3393.1,3393.0,3.55446955]
[1762626579785,0.75687847,3393.1,3393.0,3.55446955]
[1762626581389,0.27757847,3393.1,3393.0,3.58394199]
[1762626581558,0.27757847,3393.1,3393.0,3.55446955]
[1762626581759,0.75687847,3393.1,3393.0,3.55446955]
[1762626582955,1.22637847,3393.1,3393.0,3.55446955]
[1762626583920,0.27757847,3393.1,3393.0,3.55446955]
[1762626584087,0.27757847,3393.1,3393.0,4.04224199]
[1762626585032,0.27757847,3393.1,3393.0,4.01276955]
[1762626585199,0.27757847,3393.1,3393.0,4.04224199]
[1762626586611,0.27757847,3393.1,3393.0,4.01276955]
[1762626586816,0.27757847,3393.1,3393.0,4.29034802]
[1762626587812,0.27757847,3393.1,3393.0,3.83204802]
[1762626588012,0.74617847,3393.1,3393.0,3.83204802]
[1762626588514,0.27757847,3393.1,3393.0,3.83204802]
[1762626588682,0.27757847,3393.1,3393.0,4.29034802]
[1762626589491,0.27757847,3393.1,3393.0,4.75834802]
[1762626590726,0.27749452,3393.1,3393.0,4.75834802]
[1762626591519,0.27749452,3393.1,3393.0,4.29034802]
[1762626598329,0.27749452,3393.1,3393.0,9.37736014]
[1762626600247,0.002,3393.4,3393.3,8.03399588]
[1762626600455,0.002,3393.4,3393.3,12.82029588]
[1762626600636,1e-08,3393.5,3393.4,4.66490891]
[1762626600812,1e-08,3393.5,3393.4,5.13290891]
[1762626601009,1e-08,3393.5,3393.4,7.66951948]
[1762626601244,1e-08,3393.5,3393.4,15.04202348]
[1762626601449,0.002,3394.3,3393.9,2.94646277]
[1762626601654,0.002,3394.3,3393.9,8.49837489]
[1762626601848,0.002,3394.3,3393.9,8.64557489]
[1762626602013,0.002,3394.3,3393.9,10.14777003]
[1762626602550,0.002,3394.3,3393.9,11.89058203]
[1762626602752,0.4653,3394.0,3393.9,10.94258203]
[1762626603054,0.4653,3394.0,3393.9,5.70836991]
[1762626603754,0.4653,3394.0,3393.0,1.260712]
[1762626603755,0.9373,3394.0,3393.0,1.260712]
[1762626603912,0.2556,3393.8,3393.7,2.94663641]
[1762626604327,0.7276,3393.8,3393.7,2.94663641]
[1762626606554,0.2556,3393.8,3393.7,2.94663641]
[1762626607512,0.474,3394.0,3393.7,2.94663641]
[1762626607716,0.002,3394.0,3393.9,2.94646277]
[1762626607917,0.002,3394.0,3393.9,3.41136277]
[1762626608356,0.002,3394.0,3393.9,5.15417477]
[1762626608549,0.002,3394.0,3393.9,6.59485848]
[1762626609743,0.002,3394.0,3393.9,6.11175848]
[1762626610459,0.002,3394.0,3393.9,6.59485848]
[1762626610662,0.002,3394.0,3393.9,6.11175848]
[1762626613062,0.002,3394.0,3393.9,6.25895848]
[1762626613777,0.002,3394.0,3393.9,10.23698165]
[1762626616381,0.002,3394.0,3393.9,10.72008165]
[1762626617974,0.002,3394.0,3393.9,10.23698165]
[1762626618277,0.002,3394.0,3393.9,10.72008165]
[1762626618777,0.002,3394.0,3393.9,10.23698165]
[1762626619076,0.002,3394.0,3393.9,10.72008165]
[1762626619579,0.002,3394.0,3393.9,10.23698165]
[1762626620258,0.002,3394.0,3393.9,10.72008165]
[1762626620653,0.002,3394.0,3393.9,11.12558565]
[1762626620976,0.002,3394.0,3393.9,14.23258565]
[1762626621809,0.002,3394.0,3393.9,13.74948565]
[1762626623808,0.002,3394.4,3394.3,4.20582754]
[1762626624009,0.74046621,3394.4,3394.3,10.15525158]
[1762626624216,0.4653,3394.4,3394.3,10.15525158]
[1762626625709,1e-08,3394.5,3394.4,5.15374075]
[1762626625911,1e-08,3394.5,3394.4,10.64625687]
[1762626626114,1e-08,3394.5,3394.4,8.13795488]
[1762626627287,1e-08,3394.5,3394.4,7.65485488]
[1762626627489,1e-08,3394.5,3394.4,7.7728495]
[1762626631923,1e-08,3394.5,3394.4,8.2435495]
[1762626633089,0.002,3395.0,3394.9,2.94559486]
[1762626633316,0.002,3395.3,3395.2,2.94533459]
[1762626633530,0.002,3395.3,3395.2,9.93701205]
[1762626633732,0.002,3395.3,3395.2,10.09855871]
[1762626633930,0.002,3395.3,3395.2,13.95855871]
[1762626634131,0.002,3395.3,3395.2,15.39924242]
[1762626636034,0.002,3395.3,3395.2,18.50624242]
[1762626636349,0.3291,3397.0,3396.2,3.107]
[1762626636350,0.4904,3396.6,3396.2,3.107]
[1762626636548,0.1827,3397.0,3396.8,2.94394724]
[1762626636549,0.4904,3396.9,3396.8,2.94394724]
[1762626636713,0.1827,3397.0,3396.9,2.94386057]
[1762626637114,0.6765,3397.0,3396.9,9.32002329]
[1762626637314,1.1169,3397.0,3396.9,10.51698174]
[1762626637638,1.1169,3397.0,3396.9,10.70158174]
[1762626637953,1.1189,3397.0,3396.9,10.70158174]
[1762626638449,0.4958,3397.0,3396.9,10.70158174]
[1762626638621,0.002,3397.0,3396.9,10.70158174]
[1762626638951,0.002,3397.0,3396.9,15.15308574]
[1762626639325,0.002,3397.4,3397.3,7.31022596]
[1762626639546,0.002,3397.4,3397.3,13.89092183]
[1762626639852,0.002,3397.4,3397.3,14.76712583]
[1762626640015,0.4904,3398.3,3397.9,2.9429942]
[1762626640212,0.4904,3398.3,3398.2,8.0297465]
[1762626640447,0.9842,3398.3,3398.2,8.0297465]
[1762626640617,0.9842,3398.3,3398.2,8.5201465]
[1762626640817,0.1846,3399.0,3398.4,2.9425612]
[1762626640818,0.4904,3398.6,3398.4,2.9425612]
[1762626641133,0.1846,3399.0,3398.9,2.94212833]
[1762626641636,0.6784,3399.0,3398.9,2.94212833]
[1762626642046,1.1688,3399.0,3398.9,2.94212833]
[1762626642269,0.4904,3399.4,3398.9,2.94212833]
[1762626642471,0.1846,3399.3,3399.2,2.94186867]
[1762626642819,0.1846,3399.6,3399.5,2.94160906]
[1762626643248,1.1688,3399.6,3399.5,2.94160906]
[1762626643444,1.1688,3399.6,3399.3,2.94170707]
[1762626643445,1.1688,3399.6,3398.7,1.259712]
[1762626643659,0.4583,3399.5,3399.4,2.9416176]
[1762626644158,0.9228,3399.5,3399.4,2.9416176]
[1762626644712,0.4645,3399.5,3399.4,2.9416176]
[1762626645026,0.4645,3399.5,3399.4,3.60520762]
[1762626645215,0.4583,3399.8,3399.7,2.941436]
[1762626645413,0.27192466,3399.8,3399.7,3.416736]
[1762626645660,0.4645,3399.8,3399.7,2.941436]
[1762626646321,0.4645,3399.8,3399.7,3.087836]
[1762626647021,0.9228,3399.8,3399.7,3.087836]
[1762626647418,0.4645,3399.8,3399.7,3.087836]
[1762626647619,0.4645,3399.8,3399.7,3.75419016]
[1762626649956,0.4645,3399.8,3399.7,4.21869016]
[1762626650114,0.4645,3399.8,3399.7,3.552336]
[1762626650768,0.4583,3400.3,3399.7,1.11561436]
[1762626650932,0.4583,3400.3,3400.2,2.94100347]
[1762626651248,0.72925179,3400.3,3400.2,3.08740347]
[1762626651462,1.19375179,3400.3,3400.2,3.08740347]
[1762626652951,1.19375179,3400.3,3400.2,0.1464]
[1762626654453,1.19371508,3400.3,3400.2,0.1464]
[1762626655047,1.19371508,3400.3,3400.2,3.08740347]
[1762626655761,1.19571508,3400.3,3400.2,0.1464]
[1762626656157,1.19571508,3400.3,3400.2,3.08740347]
[1762626658144,1.19571508,3400.3,3400.2,0.1464]
[1762626659088,1.19571508,3400.3,3400.2,3.08740347]
[1762626659900,1.19571508,3400.3,3400.2,0.1464]
[1762626661277,1.62801822,3400.3,3400.2,0.1464]
[1762626661475,1.19571508,3400.3,3400.2,0.1464]
[1762626662376,1.19571508,3400.3,3400.2,3.08740347]
[1762626663098,1.19501508,3400.3,3400.2,3.08740347]
[1762626663304,1.19501508,3400.3,3400.2,2.94100347]
[1762626663305,0.73741508,3400.3,3400.2,2.94100347]
[1762626663468,0.27291508,3400.3,3400.2,2.94100347]
[1762626663807,0.27291508,3400.3,3400.2,3.82333042]
[1762626664005,0.27291508,3400.3,3400.2,4.28663042]
[1762626664208,0.27463929,3400.3,3400.2,4.28663042]
[1762626664720,1e-08,3400.3,3400.2,5.98125645]
[1762626664930,1e-08,3400.3,3400.2,6.43934642]
[1762626665206,1e-08,3400.3,3400.2,5.95184642]
[1762626665406,1e-08,3400.3,3400.2,6.43934642]
[1762626665719,0.48720001,3400.3,3400.2,5.08304242]
[1762626665889,0.94480001,3400.3,3400.2,2.94100347]
[1762626666092,0.94480001,3400.3,3400.1,2.94105893]
[1762626666277,0.4576,3400.2,3400.1,2.94105893]
[1762626666494,0.9448,3400.2,3400.1,2.94105893]
[1762626666690,0.002,3400.7,3400.4,2.94082738]
[1762626666895,0.4872,3400.5,3400.4,2.94082738]
[1762626667297,0.9448,3400.5,3400.4,2.94082738]
[1762626669024,0.9448,3400.5,3400.2,2.94093615]
[1762626669229,0.1533,3400.3,3399.8,0.4576]
[1762626669551,0.4576,3400.4,3400.2,2.94096912]
[1762626669707,0.4576,3400.3,3400.2,2.94096912]
[1762626669894,0.9448,3400.3,3400.2,2.94096912]
[1762626670994,0.9448,3400.3,3400.1,2.94102541]
[1762626671200,0.002,3400.7,3400.2,2.94097958]
[1762626671420,0.002,3400.7,3400.4,1.259712]
[1762626671726,0.4576,3400.6,3400.3,2.94088408]
[1762626672032,0.4872,3400.4,3400.2,1.259712]
[1762626672191,0.1533,3400.3,3400.2,1.259712]
[1762626672531,0.1533,3400.3,3400.1,1.259712]
[1762626672704,0.4576,3400.2,3399.9,2.94124954]
[1762626672904,0.4839,3400.1,3399.8,2.94131721]
[1762626673222,0.4839,3400.1,3399.4,0.4576]
[1762626673392,0.4576,3400.0,3399.5,2.94160906]
[1762626673598,0.4576,3400.0,3399.9,0.1464]
[1762626673818,0.9448,3400.0,3399.9,0.1464]
[1762626674434,1.333588,3400.0,3399.9,0.1464]
[1762626674634,1.333588,3400.0,3399.8,0.1464]
[1762626674824,0.4576,3399.9,3399.8,0.1464]
[1762626675138,1.1394,3399.9,3399.8,0.1464]
[1762626676636,1.1394,3399.9,3399.7,0.001]
[1762626676826,0.87837718,3399.8,3399.7,0.001]
[1762626677220,3.81972667,3399.8,3399.7,0.001]
[1762626677830,2.54359318,3399.8,3399.7,0.001]
[1762626678526,5.48494267,3399.8,3399.7,0.001]
[1762626678728,1.259712,3399.7,3399.4,0.001]
[1762626678928,0.4838,3399.5,3399.4,0.001]
[1762626679170,0.75917718,3399.5,3399.4,0.001]
[1762626679318,1.21677718,3399.5,3399.4,0.001]
[1762626680236,4.15838624,3399.5,3399.4,0.001]
[1762626680409,1.665216,3399.4,3397.9,0.1964]
[1762626680608,2.94190272,3399.2,3398.7,0.1464]
[1762626680803,3.21734884,3399.1,3398.7,0.1464]
[1762626681107,0.6326,3398.8,3398.7,0.1464]
[1762626681307,3.8502025,3398.8,3398.4,0.1464]
[1762626681506,0.73297718,3398.7,3398.4,0.1464]
[1762626681715,0.4872,3398.5,3398.4,0.1464]
[1762626681932,0.76257718,3398.5,3398.4,0.1464]
[1762626682145,1.22017718,3398.5,3398.4,0.1464]
[1762626682351,1.22017718,3398.5,3397.5,2.94334069]
[1762626682516,0.73297718,3398.4,3397.9,2.94298083]
[1762626682724,0.27537718,3398.3,3397.9,2.94298083]
[1762626682919,0.27537718,3398.2,3398.1,2.94282098]
[1762626683305,0.27537718,3398.2,3398.1,3.94422098]
[1762626684039,0.27537718,3398.2,3398.1,3.97364918]
[1762626684208,0.27537718,3398.2,3398.1,4.66531218]
[1762626684540,0.6522,3399.1,3398.9,2.94208496]
[1762626684732,0.27428418,3399.0,3398.9,2.94208496]
[1762626684908,0.76148418,3399.0,3398.8,0.02942214]
[1762626685248,0.45928418,3398.9,3398.8,0.02942214]
[1762626685651,0.45928418,3398.9,3398.8,2.94221489]
[1762626686763,0.45928418,3398.9,3398.6,2.94233373]
[1762626686960,0.27428418,3398.8,3398.7,2.94229404]
[1762626687460,0.76148418,3398.8,3398.7,2.94229404]
[1762626688334,0.27428418,3398.8,3398.7,3.40559404]
[1762626688543,0.27428418,3398.8,3398.7,4.04039764]
[1762626689627,0.4576,3399.6,3399.2,2.9418034]
[1762626689827,0.27410787,3399.5,3399.4,2.94169559]
[1762626690067,0.76130787,3399.5,3399.4,2.94169559]
[1762626690275,0.27410787,3399.5,3399.4,2.94169559]
[1762626690572,0.27410787,3399.5,3399.4,4.01299246]
[1762626690777,0.4576,3400.1,3399.8,2.94132054]
[1762626690984,0.4872,3399.9,3399.8,2.94132054]
[1762626691186,0.7613027,3399.9,3399.8,2.94132054]
[1762626691384,0.2741027,3399.9,3399.8,2.94132054]
[1762626691677,0.2741027,3399.9,3399.8,4.02624456]
[1762626692367,0.002,3400.3,3400.1,2.9410797]
[1762626692681,0.6383,3399.9,3399.8,0.1464]
[1762626692878,0.91239156,3399.9,3399.4,2.94169162]
[1762626693048,0.1769,3399.9,3399.8,0.1464]
[1762626693247,0.45100048,3399.9,3399.8,0.1464]
[1762626693449,0.91240048,3399.9,3399.8,0.1464]
[1762626693649,1.40390048,3399.9,3399.8,0.1464]
[1762626696542,1.83860515,3399.9,3399.8,0.1464]
[1762626697070,1.83860515,3399.9,3398.5,1.722212]
[1762626697269,0.1944,3399.3,3398.5,0.4625]
[1762626697472,0.1944,3399.3,3399.1,2.94188456]
[1762626697674,0.1944,3399.3,3399.2,0.1464]
[1762626697873,0.4915,3399.4,3399.2,0.1464]
[1762626697874,2.94141785,3399.8,3399.2,0.1464]
[1762626698187,0.4614,3399.3,3399.2,0.1464]
[1762626698383,0.73592007,3399.3,3398.9,2.94211417]
[1762626698700,0.73592007,3399.3,3398.8,2.94216072]
[1762626698701,0.27452007,3399.2,3398.8,2.94216072]
[1762626698852,0.4614,3399.3,3399.2,0.1464]
[1762626699047,0.73602372,3399.3,3399.2,0.1464]
[1762626699248,0.27462372,3399.3,3399.2,2.94186867]
[1762626699497,0.73602372,3399.3,3398.4,0.001]
[1762626699695,0.73602372,3399.3,3399.1,2.94195522]
[1762626699696,0.27471781,3399.2,3399.1,2.94195522]
[1762626700052,0.4915,3399.6,3399.2,2.94183233]
[1762626700305,0.27470848,3399.5,3399.2,2.94183233]
[1762626700507,0.4614,3399.3,3399.2,2.94183233]
[1762626700682,0.73610848,3399.3,3399.2,2.94183233]
[1762626701206,0.27470848,3399.3,3399.2,2.94183233]
[1762626702109,0.27470848,3399.3,3399.2,2.94186867]
[1762626702720,0.73610848,3399.3,3399.2,2.94186867]
[1762626703278,0.73610848,3399.3,3399.1,2.94193639]
[1762626703582,0.27470848,3399.2,3399.1,2.94195522]
[1762626704801,0.27470848,3399.2,3399.1,3.43005522]
[1762626705396,0.27470848,3399.2,3399.1,4.06726535]
[1762626705597,0.27470848,3399.2,3399.1,4.25326535]
[1762626705890,0.27470848,3399.2,3399.1,4.7559849]
[1762626706479,0.27470848,3399.2,3399.1,4.72656535]
[1762626707289,0.4594,3400.1,3399.7,2.94142443]
[1762626707489,0.27515131,3400.0,3399.7,2.94142443]
[1762626707715,0.4932,3399.8,3399.7,2.94142443]
[1762626707911,0.76835131,3399.8,3399.6,2.941453]
[1762626708129,0.27515131,3399.7,3399.1,1.29651013]
[1762626708423,0.27515131,3399.6,3399.3,2.94172352]
[1762626708622,0.27515131,3399.5,3399.4,2.94166591]
[1762626708984,0.76835131,3399.5,3399.4,2.94166591]
[1762626709522,1.22575131,3399.5,3399.4,3.08806591]
[1762626709818,1.22575131,3399.5,3399.4,0.1464]
[1762626709999,1.22575131,3399.5,3399.4,3.08809559]
[1762626710392,0.76835131,3399.5,3399.4,3.08809559]
[1762626711215,0.27515131,3399.5,3399.4,3.57619559]
[1762626711882,0.27515131,3399.5,3399.4,4.56950225]
[1762626712283,0.27515131,3399.5,3399.4,5.04280225]
[1762626713317,0.27515131,3399.5,3399.4,4.56950225]
[1762626714820,0.27515131,3399.5,3399.4,5.04280225]
[1762626715820,0.2753961,3399.5,3399.4,4.56950225]
[1762626716000,0.2753961,3399.5,3399.4,5.04280225]
[1762626717440,0.2753961,3399.5,3399.4,4.56950225]
[1762626718160,0.7685961,3399.5,3399.4,0.1464]
[1762626718307,1.2259961,3399.5,3399.4,0.1464]
[1762626720938,1.2259961,3399.5,3399.4,3.08809559]
[1762626721675,0.2753961,3399.5,3399.4,0.1464]
[1762626722037,0.7729961,3399.5,3399.4,0.1464]
[1762626722240,1.2312961,3399.5,3399.4,0.1464]
[1762626722445,0.7729961,3399.5,3399.4,0.1464]
[1762626722662,0.7729961,3399.5,3399.4,3.08809559]
[1762626723063,0.7729961,3399.5,3399.4,0.1464]
[1762626723385,1.2312961,3399.5,3399.4,0.1464]
[1762626723950,1.64856347,3399.5,3399.4,0.1464]
[1762626724150,1.2312961,3399.5,3398.9,2.94210977]
[1762626724349,0.1707,3399.1,3399.0,2.94204177]
[1762626724563,0.4460961,3399.1,3399.0,2.94204177]
[1762626724762,0.9043961,3399.1,3399.0,3.08844177]
[1762626725859,0.9043961,3399.1,3399.0,0.1464]
[1762626726953,0.4460961,3399.1,3399.0,3.08844177]
[1762626727294,0.2753961,3399.1,3399.0,3.54574177]
[1762626727442,0.2753961,3399.1,3399.0,4.60330617]
[1762626727790,0.2753961,3399.1,3399.0,4.14890617]
[1762626728446,0.2753961,3399.1,3399.0,4.60330617]
[1762626729470,0.2753961,3399.1,3399.0,9.72301817]
[1762626731698,0.002,3399.5,3399.4,2.94169559]
[1762626731846,0.002,3399.5,3399.4,4.16317762]
[1762626732042,0.002,3399.5,3399.4,5.87728962]
[1762626732339,0.002,3399.5,3399.4,5.96569316]
[1762626737133,0.002,3399.5,3399.4,5.51129316]
[1762626737323,0.002,3399.5,3399.4,5.39347267]
[1762626738025,0.002,3399.5,3399.4,5.84787267]
[1762626738338,0.002,3399.5,3399.4,5.39347267]
[1762626738514,0.4996,3399.5,3399.4,3.67646067]
[1762626738716,0.002,3399.5,3399.4,4.13376067]
[1762626739717,0.4996,3399.5,3399.4,3.67646067]
[1762626740201,0.4996,3399.5,3399.4,3.08809559]
[1762626740403,0.9579,3399.5,3399.4,3.08809559]
[1762626740608,0.4996,3399.5,3399.4,3.08809559]
[1762626740809,0.002,3399.5,3399.4,3.08809559]
[1762626742645,0.4996,3399.5,3399.4,3.08809559]
[1762626742943,0.9579,3399.5,3399.4,3.08809559]
[1762626743620,1.23308156,3399.5,3399.4,3.08809559]
[1762626745246,0.77478156,3399.5,3399.4,3.08809559]
[1762626746166,1.23308156,3399.5,3399.4,0.1464]
[1762626746364,0.27718156,3399.5,3399.4,3.08809559]
[1762626746851,0.77478156,3399.5,3399.4,3.08809559]
[1762626747357,1.23308156,3399.5,3399.4,3.08809559]
[1762626747554,1.23308156,3399.5,3399.4,0.1464]
[1762626747753,1.23308156,3399.5,3399.4,3.08809559]
[1762626747956,1.23308156,3399.5,3399.4,0.1464]
[1762626749099,1.23308156,3399.5,3399.4,3.08809559]
[1762626749576,0.77478156,3399.5,3399.4,3.08809559]
[1762626749746,0.27718156,3399.5,3399.4,4.46131214]
[1762626750352,0.27718156,3399.5,3399.4,4.94512909]
[1762626750684,0.27718156,3399.5,3399.4,4.91571214]
[1762626751343,0.27718156,3399.5,3399.4,4.46131214]
[1762626752077,0.73318156,3399.5,3399.4,3.08809559]
[1762626752242,0.73318156,3399.5,3399.4,0.1464]
[1762626752443,1.22088156,3399.5,3399.4,3.08809559]
[1762626754094,0.27718156,3399.5,3399.4,3.58339559]
[1762626754459,0.73318156,3399.5,3399.4,3.08809559]
[1762626754895,1.22088156,3399.5,3399.4,3.08809559]
[1762626755263,1.22088156,3399.5,3399.4,0.1464]
[1762626757304,1.63711347,3399.5,3399.4,0.1464]
[1762626757520,1.63711347,3399.5,3399.1,0.001]
[1762626757521,1.22088156,3399.5,3399.1,0.001]
[1762626757813,0.76288156,3399.4,3399.2,0.1464]
[1762626758013,0.27518156,3399.3,3399.2,0.1464]
[1762626758194,1.21888156,3399.3,3399.2,0.1464]
[1762626758396,1.21888156,3399.3,3399.2,3.08826867]
[1762626758601,0.27518156,3399.3,3399.2,3.08826867]
[1762626758923,0.73118156,3399.3,3399.2,3.08826867]
[1762626760442,0.73118156,3399.3,3399.2,0.1464]
[1762626760654,1.21888156,3399.3,3399.2,0.1464]
[1762626760811,1.21888156,3399.3,3399.2,3.08826867]
[1762626761800,0.73118156,3399.3,3399.2,3.08826867]
[1762626761999,1.21888156,3399.3,3399.2,3.08826867]
[1762626762403,0.27518156,3399.3,3399.2,3.08826867]
[1762626763096,0.27518156,3399.3,3399.2,4.18973341]
[1762626764303,0.002,3399.5,3399.4,2.94169559]
[1762626764614,0.27734122,3399.5,3399.4,2.94169559]
[1762626764932,0.74454122,3399.5,3399.4,3.08809559]
[1762626766339,0.27734122,3399.5,3399.4,3.55119559]
[1762626766654,0.27734122,3399.5,3399.4,4.77350195]
[1762626767151,0.74454122,3399.5,3399.4,4.31040195]
[1762626767351,1.21884122,3399.5,3399.4,3.08809559]
[1762626767950,1.21884122,3399.5,3399.4,0.1464]
[1762626768150,1.21884122,3399.5,3399.4,3.08809559]
[1762626768333,1.21884122,3399.5,3399.4,0.1464]
[1762626771136,1.21913377,3399.5,3399.4,0.1464]
[1762626776886,0.74483377,3399.5,3399.4,3.08809559]
[1762626777253,1.21913377,3399.5,3399.4,0.1464]
[1762626779675,1.21913377,3399.5,3399.4,3.08809559]
[1762626780044,1.21913377,3399.5,3399.4,0.1464]
[1762626780243,1.21913377,3399.5,3399.4,3.08809559]
[1762626780244,0.74483377,3399.5,3399.4,3.08809559]
[1762626780436,0.74483377,3399.5,3399.4,0.1464]
[1762626780642,1.21913377,3399.5,3399.4,0.1464]
[1762626781562,1.21913377,3399.5,3399.4,3.08809559]
[1762626782643,0.74483377,3399.5,3399.4,3.08809559]
[1762626784582,0.74483377,3399.5,3399.4,0.1464]
[1762626784754,1.22863377,3399.5,3399.4,0.1464]
[1762626786379,1.64565446,3399.5,3399.1,0.1474]
[1762626786703,0.1745,3399.2,3399.1,3.08934607]
[1762626786979,0.45013377,3399.2,3399.1,3.08934607]
[1762626787157,0.93393377,3399.2,3399.1,3.08934607]
[1762626787355,0.27563377,3399.2,3399.1,3.55464607]
[1762626787558,0.27563377,3399.2,3399.1,4.25094512]
[1762626787754,0.27563377,3399.2,3399.1,4.71624512]
[1762626790780,0.27563377,3399.2,3399.1,4.74566467]
[1762626791190,0.27563377,3399.2,3399.1,4.71624512]
[1762626792116,0.27563377,3399.2,3399.1,8.57624512]
[1762626794695,0.002,3399.5,3399.4,2.94169559]
[1762626794899,0.27791664,3399.5,3399.4,3.40699559]
[1762626795101,0.27791664,3399.5,3399.4,3.55339559]
[1762626795399,0.27791664,3399.5,3399.4,4.99936818]
[1762626797424,1.22181664,3399.5,3399.1,4.55729905]
[1762626797717,0.27591664,3399.4,3399.2,2.94182885]
[1762626797922,0.27591664,3399.3,3399.2,2.94182885]
[1762626798327,0.27591664,3399.3,3399.2,3.40712885]
[1762626798821,0.27591664,3399.3,3399.1,0.001]
[1762626799119,0.27591664,3399.2,3399.1,2.94295522]
[1762626799490,0.27591664,3399.2,3399.1,3.40825522]
[1762626800086,0.27591664,3399.2,3399.1,2.94295522]
[1762626800285,0.73601664,3399.2,3399.1,0.001]
[1762626800497,1.58778445,3399.2,3399.1,0.001]
[1762626800949,1.21981664,3399.2,3399.1,0.001]
[1762626805402,4.16168531,3399.2,3399.1,0.001]
[1762626805620,1.21981664,3399.2,3399.1,0.001]
[1762626806719,0.73601664,3399.2,3399.1,0.001]
[1762626807225,1.21981664,3399.2,3399.1,0.001]
[1762626807537,0.73601664,3399.2,3399.1,3.08935522]
[1762626807738,1.21981664,3399.2,3399.1,3.08935522]
[1762626808032,1.21981664,3399.2,3399.1,0.1474]
[1762626808231,1.9303533,3399.2,3399.1,0.001]
[1762626810381,1.21981664,3399.2,3399.1,0.001]
[1762626811745,1.21981664,3399.2,3398.9,0.1474]
[1762626811746,3.13114177,3399.0,3398.9,0.06335302]
[1762626811947,4.60760404,3398.6,3398.0,0.001]
[1762626812146,3.04776668,3398.6,3398.0,0.001]
[1762626812450,2.60643264,3398.6,3398.0,0.001]
[1762626812842,5.54882068,3398.6,3398.0,0.001]
[1762626814561,5.54882068,3398.6,3398.1,0.001]